Period,Quarter,"Recipient Name",City,Province,Country,Title,Language,Genre,Date,"Final Value","Original Value",Type,Purpose,Comments
2015-2016,P3,"Go Films L.P.R.S. inc.",Outremont,Quebec,Canada,"Portfolio 2015-2016 Go Films L.P.R.S. Inc.",French,Comedy,2015-10-01,78558.00,196947.00,"Recoupable Advance","Development Program","Amended contract signed  01-OCT-15"
2015-2016,P3,"Go Films L.P.R.S. inc.",Outremont,Quebec,Canada,"Portfolio 2015-2016 Go Films L.P.R.S. Inc.",French,"Drama (Film)",2015-10-01,196947.00,196947.00,"Recoupable Advance","Development Program","Amended contract signed  01-OCT-15"
2015-2016,P3,"Grandpa Productions Ltd.",Toronto,Ontario,Canada,"From Here To Infirmity",English,Comedy,2015-10-01,0.00,150000.00,"Recoupable Advance","Production Program","Amended contract signed  02-SEP-15"
2015-2016,P3,"FilmLoft Media Inc.",Aurora,Ontario,Canada,"Stand Up Man (The)",English,Comedy,2015-10-01,120000.00,120000.00,Contribution,"Micro-Budget Production Program",
2015-2016,P3,"8279454 Canada Inc.",Montreal,Quebec,Canada,"Rhymes for Young Ghouls",English,"Drama (Film)",2015-10-02,189297.00,200000.00,Investment,"Production Program","Amended contract signed  02-NOV-12"
2015-2016,P3,"Creative Women Workshops Association","North Vancouver","British Columbia",Canada,"Women In the Director's Chair (WIDC) 2016",English,N/A,2015-10-02,50000.00,50000.00,Contribution,"Promotion Program",
2015-2016,P3,"9268-4000 Quebec Inc.",Montreal,Quebec,Canada,BOOST,English,"Drama (Film)",2015-10-05,440000.00,400000.00,Investment,"Production Program","Amended contract signed  15-JUN-15"
2015-2016,P3,"Jane Silverstone Holdings Inc.",Saint-Laurent,Quebec,Canada,"Portfolio 2015-2016 Jane Silverstone Holdings Inc.",English,Action/Adventure,2015-10-06,15000.00,15000.00,"Recoupable Advance","Development Program",
2015-2016,P3,"Raven Banner Releasing Inc.",Toronto,Ontario,Canada,"Editor (The)",English,Horror,2015-10-07,49500.00,49500.00,"Recoupable Advance","Marketing Program",
2015-2016,P3,"Films Baliverna Inc. (les)",Montreal,Quebec,Canada,"Portfolio 2015-2016 Films Baliverna Inc. (les)",French,Horror,2015-10-07,15000.00,15000.00,"Recoupable Advance","Development Program",
2015-2016,P3,"ReelWorld Foundation",Toronto,Ontario,Canada,"IFL: Impact Film Lab",English,N/A,2015-10-07,15000.00,15000.00,Contribution,"Promotion Program",
2015-2016,P3,"Filmoption International inc.",Westmount,Quebec,Canada,"Gurov and Anna",English,"Drama (Film)",2015-10-08,30000.00,30000.00,"Recoupable Advance","Marketing Program",
2015-2016,P3,"Films S�ville Inc. (Les) / Seville Pictures Inc.",Montreal,Quebec,Canada,"Ego trip (anciennement Perdi an Ayiti)",French,Comedy,2015-10-08,516806.00,516806.00,"Recoupable Advance","Marketing Program",
2015-2016,P3,"Filmoption International inc.",Westmount,Quebec,Canada,"Turbo Kid",English,Sci.fi./Fantasy/Tale,2015-10-08,79538.00,79538.00,"Recoupable Advance","Marketing Program",
2015-2016,P3,"Yer Dead Productions Inc.",Halifax,"Nova Scotia",Canada,"Portfolio 2015-2016 Yer Dead Productions Inc.",English,Action/Adventure,2015-10-09,35000.00,35000.00,"Recoupable Advance","Development Program",
2015-2016,P3,"PCF SNEIJDER LE FILM INC.",Montreal,Quebec,Canada,"NOUVELLE VIE DE PAUL SNEIJDER (LA)",French,"Drama (Film)",2015-10-09,100000.00,100000.00,"Investment, Recoupable Advance",Mini-treaties,
2015-2016,P3,"PCF SNEIJDER LE FILM INC.",Montreal,Quebec,Canada,"NOUVELLE VIE DE PAUL SNEIJDER (LA)",French,"Drama (Film)",2015-10-09,400000.00,400000.00,"Investment, Recoupable Advance","Production Program",
2015-2016,P3,"Productions Pays Inc.",Montreal,Quebec,Canada,Pays,French,"Drama (Film)",2015-10-13,0.00,150000.00,"Recoupable Advance","Production Program","Amended contract signed  23-SEP-15"
2015-2016,P3,"Pope Productions Ltd.","St. John's",Newfoundland/Labrador,Canada,"Portfolio 2015-2016 Pope Productions Ltd.",English,"Drama (Film)",2015-10-14,35000.00,35000.00,"Recoupable Advance","Development Program",
2015-2016,P3,"Coop Vid�o de Montr�al",Montreal,Quebec,Canada,"Portfolio 2015-2016 Coop Vid�o de Montr�al",French,"Drama (Film)",2015-10-14,35000.00,35000.00,"Recoupable Advance","Development Program",
2015-2016,P3,"Maurice Smith Productions Inc.",Vancouver,"British Columbia",Canada,"Portfolio 2015-2016 Maurice Smith Productions Inc.",English,Comedy,2015-10-14,15000.00,15000.00,"Recoupable Advance","Development Program",
2015-2016,P3,"22 Chaser Productions Inc. ",Toronto,Ontario,Canada,"22 Chaser",English,"Drama (Film)",2015-10-14,300000.00,300000.00,Investment,"Production Program",
2015-2016,P3,"Euclid 431 Pictures Inc.",Toronto,Ontario,Canada,"Portfolio 2015-2016 Euclid 431 Pictures Inc.",English,"Drama (Film)",2015-10-16,20000.00,20000.00,"Recoupable Advance","Development Program",
2015-2016,P3,"Rhombus Media Inc.",Toronto,Ontario,Canada,"Closet Monster",English,"Drama (Film)",2015-10-16,4292.00,4292.00,Contribution,"International Marketing Program",
2015-2016,P3,"Milton's Secret Productions Inc.",Toronto,Ontario,Canada,"Milton's Secret",English,"Drama (Film)",2015-10-16,500000.00,500000.00,Investment,"Production Program",
2015-2016,P3,"Six Island Productions Inc.",Toronto,Ontario,Canada,"Portfolio 2015-2016 Six Island Productions Inc.",English,"Drama (Film)",2015-10-18,15000.00,15000.00,"Recoupable Advance","Development Program",
2015-2016,P3,"Alcina Pictures Ltd.",Toronto,Ontario,Canada,"Portfolio 2015-2016 Alcina Pictures Ltd.",English,"Drama (Film)",2015-10-19,25000.00,25000.00,"Recoupable Advance","Development Program",
2015-2016,P3,"Mark Krupa Inc.",Montreal,Quebec,Canada,"Portfolio 2015-2016 Mark Krupa Inc.",English,Sci.fi./Fantasy/Tale,2015-10-19,15000.00,15000.00,"Recoupable Advance","Development Program",
2015-2016,P3,"Newfoundland Independent Filmmakers Co-Operative Limited","St. John's",Newfoundland/Labrador,Canada,"Picture Start 10",English,N/A,2015-10-19,52000.00,52000.00,Contribution,"Promotion Program",
2015-2016,P3,"Search Engine Films Inc.",Toronto,Ontario,Canada,Guidance,English,Comedy,2015-10-20,17711.00,19313.00,"Recoupable Advance","Marketing Program","Amended contract signed  29-JUN-15"
2015-2016,P3,"Cardinal Pictures Inc.",Toronto,Ontario,Canada,Cardinal,English,"Drama (Film)",2015-10-20,120000.00,120000.00,Contribution,"Micro-Budget Production Program",
2015-2016,P3,"Canadian Film Centre",Toronto,Ontario,Canada,"2015/2016 Telefilm Canada Feature Comedy Exchange",English,N/A,2015-10-20,174250.00,174250.00,Contribution,"Promotion Program",
2015-2016,P3,"Hollow in the Land Pictures Inc.",Vancouver,"British Columbia",Canada,"Hollow In The Land",English,Thriller,2015-10-20,250000.00,250000.00,Investment,"Production Program",
2015-2016,P3,"Elevation Pictures Corp.",Toronto,Ontario,Canada,"Hyena Road",English,"Drama (Film)",2015-10-21,1788892.00,1788892.00,"Recoupable Advance","Marketing Program",
2015-2016,P3,"Productions l'unit� centrale inc.",Montreal,Quebec,Canada,"Portfolio 2015-2016 Productions l'unit� centrale inc.",French,"Drama (Film)",2015-10-21,15000.00,15000.00,"Recoupable Advance","Development Program",
2015-2016,P3,"Scythia Films Inc.",Toronto,Ontario,Canada,"Portfolio 2015-2016 Scythia Films Inc.",English,Comedy,2015-10-21,15000.00,15000.00,"Recoupable Advance","Development Program",
2015-2016,P3,"Yorkton Short Film and Video Festival Inc.",Yorkton,Saskatchewan,Canada,"Yorkton Short Film and Video Festival (2016)",English,N/A,2015-10-21,22045.00,22045.00,Contribution,"Promotion Program",
2015-2016,P3,"Banner House Productions Inc. ",Montreal,Quebec,Canada,"Portfolio 2015-2016 Banner House Productions Inc.",English,"Romantic Comedy",2015-10-22,15000.00,15000.00,"Recoupable Advance","Development Program",
2015-2016,P3,"Hill 100 Productions Inc.",Toronto,Ontario,Canada,"Portfolio 2015-2016 Hill 100 Productions Inc.",English,Action/Adventure,2015-10-22,15000.00,15000.00,"Recoupable Advance","Development Program",
2015-2016,P3,"Carousel Pictures Inc.",Toronto,Ontario,Canada,"Portfolio 2015-2016 Carousel Pictures Inc.",English,"Drama (Film)",2015-10-22,15000.00,15000.00,"Recoupable Advance","Development Program",
2015-2016,P3,"Production Ville-Marie inc.",Montreal,Quebec,Canada,VILLE-MARIE,French,"Drama (Film)",2015-10-22,1010.00,1010.00,Contribution,"International Marketing Program",
2015-2016,P3,"Les Productions du Moment Inc.",Saint-Basile-le-Grand,Quebec,Canada,"Garagiste (Le)",French,"Drama (Film)",2015-10-22,65000.00,65000.00,Investment,"Production Program",
2015-2016,P3,"First Round Productions Inc.",Toronto,Ontario,Canada,"First Round Down",English,Comedy,2015-10-22,130072.00,130072.00,Investment,"Production Program",
2015-2016,P3,"Orange M�dias Inc.",Rosemere,Quebec,Canada,"Portfolio 2015-2016 Orange M�dias Inc.",French,Comedy,2015-10-23,15000.00,80000.00,"Recoupable Advance","Development Program","Amended contract signed  23-OCT-15"
2015-2016,P3,"Orange M�dias Inc.",Rosemere,Quebec,Canada,"Portfolio 2015-2016 Orange M�dias Inc.",French,"Drama (Film)",2015-10-23,80000.00,80000.00,"Recoupable Advance","Development Program","Amended contract signed  23-OCT-15"
2015-2016,P3,"Filmoption International inc.",Westmount,Quebec,Canada,VILLE-MARIE,French,"Drama (Film)",2015-10-23,300000.00,300000.00,"Recoupable Advance","Marketing Program",
2015-2016,P3,"Canadian Media Production Association - Association Canadienne de Production de M�dia",Ottawa,Ontario,Canada,"Prime Time in Ottawa 2016",English,N/A,2015-10-23,25000.00,25000.00,Contribution,"Promotion Program",
2015-2016,P3,"Zeeworks Pictures Inc.",Vancouver,"British Columbia",Canada,"Portfolio 2015-2016 Zeeworks Pictures Inc.",English,Action/Adventure,2015-10-27,25000.00,25000.00,"Recoupable Advance","Development Program",
2015-2016,P3,"Film Zone Inc.",Moncton,"New Brunswick",Canada,"Festival international du cin�ma francophone en Acadie 2015 (29e) incluant l'initiatives diverses 2015-16",French,N/A,2015-10-27,52808.00,52808.00,Contribution,"Promotion Program",
2015-2016,P3,"Mongrel Media Inc.",Toronto,Ontario,Canada,"Beeba Boys",English,"Drama (Film)",2015-10-28,911625.00,911625.00,"Recoupable Advance","Marketing Program",
2015-2016,P3,"1976 Productions inc.",Montreal,Quebec,Canada,"Portfolio 2015-2016 1976 Productions Inc.",English,"Romantic Comedy",2015-10-28,15000.00,15000.00,"Recoupable Advance","Development Program",
2015-2016,P3,"Jean Of The Joneses Productions Inc.",Mississauga,Ontario,Canada,"Jean of the Joneses",English,Comedy,2015-10-28,220000.00,220000.00,Investment,"Production Program",
2015-2016,P3,"Groupe TVA inc. (Faisant affaires sous le nom de TVA Films)",Montreal,Quebec,Canada,"Garagiste (Le)",French,"Drama (Film)",2015-10-29,40000.00,40000.00,"Recoupable Advance","Marketing Program",
2015-2016,P3,"Metropole Films Distribution",Montreal,Quebec,Canada,"Avril et un monde truqu�",French,Action/Adventure,2015-10-29,70000.00,70000.00,"Recoupable Advance","Marketing Program",
2015-2016,P3,"2033161 Ontario Limited d.b.a. Films We Like",Toronto,Ontario,Canada,"Al Purdy was Here",English,Documentary,2015-10-29,16500.00,16500.00,"Recoupable Advance","Marketing Program",
2015-2016,P3,"OBJECTIF 9 INC.",Montreal,Quebec,Canada,"Portfolio 2015-2016 OBJECTIF 9 INC.",French,"Historical Drama",2015-10-30,15000.00,15000.00,"Recoupable Advance","Development Program",
2015-2016,P3,"Productions Avenida inc.",Montreal,Quebec,Canada,"Portfolio 2015-2016 Productions Avenida inc.",French,Action/Adventure,2015-10-30,15000.00,15000.00,"Recoupable Advance","Development Program",
2015-2016,P3,"Les Films de La Mancha Inc.",Montreal,Quebec,Canada,"Portfolio 2015-2016 Les Films de La Mancha Inc.",English,Sci.fi./Fantasy/Tale,2015-11-02,15000.00,15000.00,"Recoupable Advance","Development Program",
2015-2016,P3,"Mongrel Media Inc.",Toronto,Ontario,Canada,Fall,English,"Drama (Film)",2015-11-04,15942.00,16995.00,"Recoupable Advance","Marketing Program","Amended contract signed  09-MAR-15"
2015-2016,P3,"Film Sodom Inc.",Outremont,Quebec,Canada,Anna,French,"Drama (Film)",2015-11-04,4183.00,4183.00,Contribution,"International Marketing Program",
2015-2016,P3,"9174-5018 Qu�bec inc.",Montreal,Quebec,Canada,"Probl�me d'infiltration (Le)",French,"Drama (Film)",2015-11-04,400000.00,400000.00,Investment,"Production Program",
2015-2016,P3,"Rob Heydon Holdings Inc.","Stoney Creek",Ontario,Canada,"Portfolio 2015-2016 Rob Heydon Holdings Inc.",English,Action/Adventure,2015-11-05,15000.00,15000.00,"Recoupable Advance","Development Program",
2015-2016,P3,"Amerique Film Inc.",Montreal,Quebec,Canada,"Portfolio 2015-2016 Amerique Film Inc.",French,Comedy,2015-11-05,15000.00,15000.00,"Recoupable Advance","Development Program",
2015-2016,P3,"9251-5980 Qu�bec Inc.",Montreal,Quebec,Canada,"F�lix et Meira",French,"Drama (Film)",2015-11-05,100000.00,100000.00,Contribution,"International Marketing Program",
2015-2016,P3,"Considering Love Manitoba Inc.",Winnipeg,Manitoba,Canada,"Considering Love and Other Magic",English,"Drama (Film)",2015-11-05,300000.00,300000.00,Investment,"Production Program",
2015-2016,P3,"Mongrel Media Inc.",Toronto,Ontario,Canada,"Still Mine",English,"Drama (Film)",2015-11-09,520593.00,50000.00,"Recoupable Advance","Marketing Program","Amended contract signed  05-FEB-13"
2015-2016,P3,"Honalee Productions Inc.",Vancouver,"British Columbia",Canada,"Portfolio 2015-2016 Honalee Productions Inc.",English,"Drama (Film)",2015-11-09,30000.00,60000.00,"Recoupable Advance","Development Program","Amended contract signed  09-NOV-15"
2015-2016,P3,"Honalee Productions Inc.",Vancouver,"British Columbia",Canada,"Portfolio 2015-2016 Honalee Productions Inc.",English,"Historical Drama",2015-11-09,60000.00,60000.00,"Recoupable Advance","Development Program","Amended contract signed  09-NOV-15"
2015-2016,P3,"Productions Pays Inc.",Montreal,Quebec,Canada,Pays,French,"Drama (Film)",2015-11-09,1200000.00,1200000.00,"Recoupable Advance","Production Program",
2015-2016,P3,"Cineast Screen Development Limited",Halifax,"Nova Scotia",Canada,"Portfolio 2015-2016 Cineast Screen Development Limited",English,Comedy,2015-11-09,15000.00,15000.00,"Recoupable Advance","Development Program",
2015-2016,P3,"Production Deux nuits Inc.",Montreal,Quebec,Canada,RUNNING,French,"Drama (Film)",2015-11-09,500000.00,500000.00,"Recoupable Advance","Production Program",
2015-2016,P3,"Carpediem Film & TV Inc.",Montreal,Quebec,Canada,"Portfolio 2015-2016 CarpeDiem Film & TV Inc.",English,Comedy,2015-11-09,20000.00,20000.00,"Recoupable Advance","Development Program",
2015-2016,P3,"Precious Snowflake Productions Inc.",Toronto,Ontario,Canada,"Portfolio 2015-2016 Precious Snowflake Productions Inc.",English,Comedy,2015-11-09,15000.00,15000.00,"Recoupable Advance","Development Program",
2015-2016,P3,"EMAfilms Inc.",Montreal,Quebec,Canada,"Portfolio 2015-2016 EMA FILMS INC.",English,Action/Adventure,2015-11-10,15000.00,60000.00,"Recoupable Advance","Development Program","Amended contract signed  10-NOV-15"
2015-2016,P3,"EMAfilms Inc.",Montreal,Quebec,Canada,"Portfolio 2015-2016 EMA FILMS INC.",English,"Drama (Film)",2015-11-10,45000.00,60000.00,"Recoupable Advance","Development Program","Amended contract signed  10-NOV-15"
2015-2016,P3,"EMAfilms Inc.",Montreal,Quebec,Canada,"Portfolio 2015-2016 EMA FILMS INC.",English,Sci.fi./Fantasy/Tale,2015-11-10,60000.00,60000.00,"Recoupable Advance","Development Program","Amended contract signed  10-NOV-15"
2015-2016,P3,"Greater Vancouver International Film Festival Society",Vancouver,"British Columbia",Canada,"Vancouver International Film Festival (2015) ",English,N/A,2015-11-10,242172.00,242172.00,Contribution,"Promotion Program",
2015-2016,P3,"9219-3010 Qu�bec Inc.",Montreal,Quebec,Canada,"Portfolio 2015-2016 9219-3010 Qu�bec Inc.",French,"Romantic Comedy",2015-11-12,20000.00,20000.00,"Recoupable Advance","Development Program",
2015-2016,P3,"Entertainment One Films Canada Inc.",Toronto,Ontario,Canada,"Maps to the Stars",English,"Drama (Film)",2015-11-13,751548.00,762794.00,"Recoupable Advance","Marketing Program","Amended contract signed  02-APR-15"
2015-2016,P3,"Aetios Productions Inc.",Saint-Sauveur,Quebec,Canada,"Portfolio 2015-2016 Aetios Productions Inc.",French,"Drama (Film)",2015-11-13,15000.00,15000.00,"Recoupable Advance","Development Program",
2015-2016,P3,"Chaos A Film Company Inc.",Calgary,Alberta,Canada,"Portfolio 2015-2016 Chaos a film company inc.",English,"Historical Drama",2015-11-13,15000.00,15000.00,"Recoupable Advance","Development Program",
2015-2016,P3,"3090-5178 Quebec Inc. f/a/s Palomar",Montreal,Quebec,Canada,"Portfolio 2015-2016 3090-5178 Quebec Inc. f/a/s Palomar",English,"Drama (Film)",2015-11-14,15000.00,15000.00,"Recoupable Advance","Development Program",
2015-2016,P3,"Howie Role Productions Inc.",Vancouver,"British Columbia",Canada,"Portfolio 2015-2016 Howie Role Productions Inc.",English,Comedy,2015-11-14,15000.00,15000.00,"Recoupable Advance","Development Program",
2015-2016,P3,"GROUPE PVP INC.",Matane,Quebec,Canada,"Portfolio 2015-2016 GROUPE PVP INC.",French,"Drama (Film)",2015-11-16,19622.00,19622.00,"Recoupable Advance","Development Program",
2015-2016,P3,"Films 53/12 Inc.",Montreal,Quebec,Canada,"Portfolio 2015-2016 Films 53/12 Inc.",French,"Drama (Film)",2015-11-16,20000.00,20000.00,"Recoupable Advance","Development Program",
2015-2016,P3,"Christal Films Productions inc.",Montreal,Quebec,Canada,"Portfolio 2015-2016 Christal Films Productions Inc. - 2",French,Comedy,2015-11-17,38000.00,200000.00,"Recoupable Advance","Development Program","Amended contract signed  17-NOV-15"
2015-2016,P3,"Christal Films Productions inc.",Montreal,Quebec,Canada,"Portfolio 2015-2016 Christal Films Productions Inc. - 2",French,"Romantic Comedy",2015-11-17,83000.00,200000.00,"Recoupable Advance","Development Program","Amended contract signed  17-NOV-15"
2015-2016,P3,"Christal Films Productions inc.",Montreal,Quebec,Canada,"Portfolio 2015-2016 Christal Films Productions Inc. - 2",French,"Historical Drama",2015-11-17,132000.00,200000.00,"Recoupable Advance","Development Program","Amended contract signed  17-NOV-15"
2015-2016,P3,"Christal Films Productions inc.",Montreal,Quebec,Canada,"Portfolio 2015-2016 Christal Films Productions Inc. - 2",French,"Historical Drama",2015-11-17,168000.00,200000.00,"Recoupable Advance","Development Program","Amended contract signed  17-NOV-15"
2015-2016,P3,"Christal Films Productions inc.",Montreal,Quebec,Canada,"Portfolio 2015-2016 Christal Films Productions Inc. - 2",French,Sci.fi./Fantasy/Tale,2015-11-17,200000.00,200000.00,"Recoupable Advance","Development Program","Amended contract signed  17-NOV-15"
2015-2016,P3,"2370316 Ontario Inc.",Toronto,Ontario,Canada,"Portfolio 2015-2016 2370316 Ontario Inc.",English,"Drama (Film)",2015-11-17,20000.00,20000.00,"Recoupable Advance","Development Program",
2015-2016,P3,"9281-8269 Qu�bec Inc.",St-Bruno,Quebec,Canada,"Portfolio 2015-2016 9281-8269 Qu�bec Inc.",French,"Romantic Comedy",2015-11-17,15000.00,15000.00,"Recoupable Advance","Development Program",
2015-2016,P3,"Victoria Independent Film and Video Festival",Victoria,"British Columbia",Canada,"Victoria Film Festival (2016)",English,N/A,2015-11-17,32445.00,32445.00,Contribution,"Promotion Program",
2015-2016,P3,"Malefic Films Inc.",Halifax,"Nova Scotia",Canada,"Child Remains (The)",English,Horror,2015-11-17,350000.00,350000.00,Investment,"Production Program",
2015-2016,P3,"Funfilm Distribution Inc.",Montreal,Quebec,Canada,"Chorus (aka Forget me not)",French,"Drama (Film)",2015-11-18,63138.00,65000.00,"Recoupable Advance","Marketing Program","Amended contract signed  29-JAN-15"
2015-2016,P3,"Resonance Films Inc. ",Vancouver,"British Columbia",Canada,"Portfolio 2015-2016 Resonance Films Inc.",English,"Romantic Comedy",2015-11-18,15000.00,15000.00,"Recoupable Advance","Development Program",
2015-2016,P3,"Pitchblack Pictures Inc.",Burnaby,"British Columbia",Canada,"Portfolio 2015-2016 Pitchblack Pictures Inc.",English,Comedy,2015-11-19,15000.00,45000.00,"Recoupable Advance","Development Program","Amended contract signed  19-NOV-15"
2015-2016,P3,"Pitchblack Pictures Inc.",Burnaby,"British Columbia",Canada,"Portfolio 2015-2016 Pitchblack Pictures Inc.",English,"Drama (Film)",2015-11-19,45000.00,45000.00,"Recoupable Advance","Development Program","Amended contract signed  19-NOV-15"
2015-2016,P3,"Zoofilms Inc.",Mansonville,Quebec,Canada,"Portfolio 2015-2016 Zoofilms Inc.",English,Action/Adventure,2015-11-19,15000.00,55000.00,"Recoupable Advance","Development Program","Amended contract signed  19-NOV-15"
2015-2016,P3,"Zoofilms Inc.",Mansonville,Quebec,Canada,"Portfolio 2015-2016 Zoofilms Inc.",French,Action/Adventure,2015-11-19,40000.00,55000.00,"Recoupable Advance","Development Program","Amended contract signed  19-NOV-15"
2015-2016,P3,"Zoofilms Inc.",Mansonville,Quebec,Canada,"Portfolio 2015-2016 Zoofilms Inc.",French,Musical,2015-11-19,55000.00,55000.00,"Recoupable Advance","Development Program","Amended contract signed  19-NOV-15"
2015-2016,P3,"Sohkeciwan Productions Ltd.","North Vancouver","British Columbia",Canada,"River of Silence",English,"Drama (Film)",2015-11-19,120000.00,120000.00,Contribution,"Micro-Budget Production Program",
2015-2016,P3,"Visions Ouest Productions",Vancouver,"British Columbia",Canada,"Rendez-vous du cin�ma qu�b�cois et francophone de Vancouver 2016 (22e)",French,N/A,2015-11-19,8132.00,8132.00,Contribution,"Promotion Program",
2015-2016,P3,"Atlantic Film Festival Association",Halifax,"Nova Scotia",Canada,FIAV_2015/2016,English,N/A,2015-11-19,26963.00,26963.00,Contribution,"Promotion Program",
2015-2016,P3,"Story Engine Pictures Inc.",Halifax,"Nova Scotia",Canada,"Portfolio 2015-2016 Story Engine Pictures Inc.",English,Comedy,2015-11-20,15000.00,15000.00,"Recoupable Advance","Development Program",
2015-2016,P3,"Yukon Film Society",Whitehorse,Yukon,Canada,"Available Light Film Festival 2016",English,N/A,2015-11-20,8813.00,8813.00,Contribution,"Promotion Program",
2015-2016,P3,"Melenny Productions Inc.",Montreal,Quebec,Canada,"Portfolio 2015-2016 Melenny Productions Inc.",English,Comedy,2015-11-23,50000.00,50000.00,"Recoupable Advance","Development Program",
2015-2016,P3,"Rhombus Hyena Inc.",Toronto,Ontario,Canada,"Hyena Road",English,"Drama (Film)",2015-11-24,6000000.00,3977948.00,Investment,"Production Program","Amended contract signed  20-MAR-13"
2015-2016,P3,"Microscope inc.",Montreal,Quebec,Canada,"Portfolio 2015-2016 Microscope Inc.",English,Comedy,2015-11-24,25000.00,200000.00,"Recoupable Advance","Development Program","Amended contract signed  24-NOV-15"
2015-2016,P3,"Microscope inc.",Montreal,Quebec,Canada,"Portfolio 2015-2016 Microscope Inc.",French,Comedy,2015-11-24,115000.00,200000.00,"Recoupable Advance","Development Program","Amended contract signed  24-NOV-15"
2015-2016,P3,"Microscope inc.",Montreal,Quebec,Canada,"Portfolio 2015-2016 Microscope Inc.",English,"Drama (Film)",2015-11-24,200000.00,200000.00,"Recoupable Advance","Development Program","Amended contract signed  24-NOV-15"
2015-2016,P3,"Elevation Pictures Corp.",Toronto,Ontario,Canada,Room,English,"Drama (Film)",2015-11-24,1518881.00,1518881.00,"Recoupable Advance","Marketing Program",
2015-2016,P3,"9322-5019 Qu�bec Inc.",Montreal,Quebec,Canada,"Memory Is Our Homeland",English,Documentary,2015-11-24,120000.00,120000.00,Contribution,"Micro-Budget Production Program",
2015-2016,P3,"Cin�maginaire inc.",Montreal,Quebec,Canada,"Portfolio 2015-2016 Cin�maginaire Inc.",French,Comedy,2015-11-25,75000.00,200000.00,"Recoupable Advance","Development Program","Amended contract signed  25-NOV-15"
2015-2016,P3,"Cin�maginaire inc.",Montreal,Quebec,Canada,"Portfolio 2015-2016 Cin�maginaire Inc.",French,"Drama (Film)",2015-11-25,200000.00,200000.00,"Recoupable Advance","Development Program","Amended contract signed  25-NOV-15"
2015-2016,P3,"David Gross Productions Inc.",Toronto,Ontario,Canada,"Portfolio 2015-2016 David Gross Productions Inc.",English,"Drama (Film)",2015-11-25,80000.00,80000.00,"Recoupable Advance","Development Program",
2015-2016,P3,"Reel to Real: A Celebration Of Moving Images For Youth Society",Vancouver,"British Columbia",Canada,"Reel 2 Real International Film Festival for Youth 2016",English,N/A,2015-11-25,7528.00,7528.00,Contribution,"Promotion Program",
2015-2016,P3,"FU2 Productions Ltd.",Calgary,Alberta,Canada,"Fubar II",English,Comedy,2015-11-26,2117355.00,1900000.00,"Investment, Recoupable Advance","Production Program","Amended contract signed  22-OCT-09"
2015-2016,P3,"Khoya Films Inc.",Sarnia,Ontario,Canada,Khoya,English,"Drama (Film)",2015-11-26,1644.00,1644.00,Contribution,"International Marketing Program",
2015-2016,P3,"Attraction Images inc.",Montreal,Quebec,Canada,"Portfolio 2015-2016 Attraction Images inc.",French,"Romantic Comedy",2015-12-02,83203.00,125000.00,"Recoupable Advance","Development Program","Amended contract signed  02-DEC-15"
2015-2016,P3,"Attraction Images inc.",Montreal,Quebec,Canada,"Portfolio 2015-2016 Attraction Images inc.",French,"Drama (Film)",2015-12-02,125000.00,125000.00,"Recoupable Advance","Development Program","Amended contract signed  02-DEC-15"
2015-2016,P3,"Films Christal, s.e.c.(Les), agissant par l'interm�diaire de son commandit�, Les Films Christal Inc",Montreal,Quebec,Canada,"Guibord s'en va-t-en guerre",French,Comedy,2015-12-02,473428.00,473428.00,"Recoupable Advance","Marketing Program",
2015-2016,P3,"Films S�ville Inc. (Les) / Seville Pictures Inc.",Montreal,Quebec,Canada,Anna,French,"Drama (Film)",2015-12-02,56866.00,56866.00,"Recoupable Advance","Marketing Program",
2015-2016,P3,"Productions Caramel Film Inc.",Montreal,Quebec,Canada,"Portfolio 2015-2016 Productions Caramel Film Inc.",French,Action/Adventure,2015-12-03,16310.00,215000.00,"Recoupable Advance","Development Program","Amended contract signed  03-DEC-15"
2015-2016,P3,"Productions Caramel Film Inc.",Montreal,Quebec,Canada,"Portfolio 2015-2016 Productions Caramel Film Inc.",English,Comedy,2015-12-03,128403.00,215000.00,"Recoupable Advance","Development Program","Amended contract signed  03-DEC-15"
2015-2016,P3,"Productions Caramel Film Inc.",Montreal,Quebec,Canada,"Portfolio 2015-2016 Productions Caramel Film Inc.",French,Comedy,2015-12-03,152584.00,215000.00,"Recoupable Advance","Development Program","Amended contract signed  03-DEC-15"
2015-2016,P3,"Productions Caramel Film Inc.",Montreal,Quebec,Canada,"Portfolio 2015-2016 Productions Caramel Film Inc.",English,"Drama (Film)",2015-12-03,200000.00,215000.00,"Recoupable Advance","Development Program","Amended contract signed  03-DEC-15"
2015-2016,P3,"Productions Caramel Film Inc.",Montreal,Quebec,Canada,"Portfolio 2015-2016 Productions Caramel Film Inc.",French,"Drama (Film)",2015-12-03,215000.00,215000.00,"Recoupable Advance","Development Program","Amended contract signed  03-DEC-15"
2015-2016,P3,"Cave Painting Pictures Inc.",Toronto,Ontario,Canada,"Portfolio 2015-2016 Cave Painting Pictures Inc.",English,Horror,2015-12-03,15000.00,15000.00,"Recoupable Advance","Development Program",
2015-2016,P3,"Rock and Gold Productions Inc.",Regina,Saskatchewan,Canada,"Land of Rock and Gold (The)",English,"Drama (Film)",2015-12-04,120000.00,120000.00,Contribution,"Micro-Budget Production Program",
2015-2016,P3,"Films S�ville Inc. (Les) / Seville Pictures Inc.",Montreal,Quebec,Canada,"Elephant Song (The)",English,"Drama (Film)",2015-12-07,246066.00,253722.00,"Recoupable Advance","Marketing Program","Amended contract signed  08-APR-15"
2015-2016,P3,"Films S�ville Inc. (Les) / Seville Pictures Inc.",Montreal,Quebec,Canada,"LOUPS (LES)",French,"Drama (Film)",2015-12-07,84950.00,91636.00,"Recoupable Advance","Marketing Program","Amended contract signed  18-MAR-15"
2015-2016,P3,"A71 Entertainment Inc.",Toronto,Ontario,Canada,"People Hold On",English,"Drama (Film)",2015-12-07,33000.00,33000.00,"Recoupable Advance","Marketing Program",
2015-2016,P3,"P�riph�ria Productions Inc.",Montreal,Quebec,Canada,"Rouge gorge",French,Documentary,2015-12-07,15000.00,0.00,"Recoupable Advance",Mini-treaties,
2015-2016,P3,"Lumino Pictures Inc.",Toronto,Ontario,Canada,"Portfolio 2015-2016 Lumino Pictures Inc.",English,Horror,2015-12-07,15000.00,15000.00,"Recoupable Advance","Development Program",
2015-2016,P3,"The Documentary Media Society",Vancouver,"British Columbia",Canada,"DOXA Documentary Film Festival (2016)",English,N/A,2015-12-07,10815.00,10815.00,Contribution,"Promotion Program",
2015-2016,P3,"Inferno Pictures Inc.",Winnipeg,Manitoba,Canada,"Portfolio 2015-2016 Inferno Pictures Inc.",English,"Drama (Film)",2015-12-08,60000.00,60000.00,"Recoupable Advance","Development Program",
2015-2016,P3,"Films S�ville Inc. (Les) / Seville Pictures Inc.",Montreal,Quebec,Canada,"�tres chers (Les)",French,"Drama (Film)",2015-12-08,97688.00,97688.00,"Recoupable Advance","Marketing Program",
2015-2016,P3,"Mongrel Media Inc.",Toronto,Ontario,Canada,Brooklyn,English,"Drama (Film)",2015-12-09,1428000.00,1428000.00,"Recoupable Advance","Marketing Program",
2015-2016,P3,"Echo Media Inc.",Montreal,Quebec,Canada,"Portfolio 2015-2016 Echo Media Inc.",French,Comedy,2015-12-09,15000.00,15000.00,"Recoupable Advance","Development Program",
2015-2016,P3,"Enigmatico Films Inc.",Toronto,Ontario,Canada,"Portfolio 2015-2016 Enigmatico Films Inc.",English,Mystery/Crime/Police,2015-12-10,15000.00,15000.00,"Recoupable Advance","Development Program",
2015-2016,P3,"Mongrel Media Inc.",Toronto,Ontario,Canada,"The Forbidden Room",English,"Drama (Film)",2015-12-10,3591.00,3591.00,Contribution,"International Marketing Program",
2015-2016,P3,"Slow Motion Food Film Fest Society",Wolfville,"Nova Scotia",Canada,"Devour! The Food Film Fest",English,N/A,2015-12-10,6000.00,6000.00,Contribution,"Promotion Program",
2015-2016,P3,"Don't Talk to Irene Inc.",Hamilton,Ontario,Canada,"Don't Talk To Irene",English,Comedy,2015-12-10,350000.00,350000.00,Investment,"Production Program",
2015-2016,P3,"Buffalo Gal Pictures Inc.",Winnipeg,Manitoba,Canada,"Portfolio 2015-2016 Buffalo Gal Pictures Inc.",English,"Drama (Film)",2015-12-11,15000.00,45000.00,"Recoupable Advance","Development Program","Amended contract signed  11-DEC-15"
2015-2016,P3,"Buffalo Gal Pictures Inc.",Winnipeg,Manitoba,Canada,"Portfolio 2015-2016 Buffalo Gal Pictures Inc.",English,"Historical Drama",2015-12-11,30000.00,45000.00,"Recoupable Advance","Development Program","Amended contract signed  11-DEC-15"
2015-2016,P3,"Buffalo Gal Pictures Inc.",Winnipeg,Manitoba,Canada,"Portfolio 2015-2016 Buffalo Gal Pictures Inc.",English,Horror,2015-12-11,45000.00,45000.00,"Recoupable Advance","Development Program","Amended contract signed  11-DEC-15"
2015-2016,P3,"Funco Ltd.",Calgary,Alberta,Canada,"Portfolio 2015-2016 Funco Ltd.",English,Comedy,2015-12-11,40000.00,40000.00,"Recoupable Advance","Development Program",
2015-2016,P3,"Entertainment One Films Canada Inc.",Toronto,Ontario,Canada,"Teen Lust",English,Comedy,2015-12-13,48836.00,48836.00,"Recoupable Advance","Marketing Program",
2015-2016,P3,"First Take Entertainment Ltd.",Oakville,Ontario,Canada,"Portfolio 2015-2016 First Take Entertainment Ltd.",English,Comedy,2015-12-14,42700.00,95000.00,"Recoupable Advance","Development Program","Amended contract signed  14-DEC-15"
2015-2016,P3,"First Take Entertainment Ltd.",Oakville,Ontario,Canada,"Portfolio 2015-2016 First Take Entertainment Ltd.",English,"Drama (Film)",2015-12-14,95000.00,95000.00,"Recoupable Advance","Development Program","Amended contract signed  14-DEC-15"
2015-2016,P3,"Bunk 11 Pictures Inc. ",Ottawa,Ontario,Canada,"Portfolio 2015-2016 Bunk 11 Pictures Inc.",English,Action/Adventure,2015-12-14,15000.00,30000.00,"Recoupable Advance","Development Program","Amended contract signed  14-DEC-15"
2015-2016,P3,"Bunk 11 Pictures Inc. ",Ottawa,Ontario,Canada,"Portfolio 2015-2016 Bunk 11 Pictures Inc.",English,Comedy,2015-12-14,30000.00,30000.00,"Recoupable Advance","Development Program","Amended contract signed  14-DEC-15"
2015-2016,P3,"Whizbang Films Inc.",Toronto,Ontario,Canada,"Portfolio 2015-2016 Whizbang Films Inc.",English,Comedy,2015-12-14,15000.00,40000.00,"Recoupable Advance","Development Program","Amended contract signed  14-DEC-15"
2015-2016,P3,"Whizbang Films Inc.",Toronto,Ontario,Canada,"Portfolio 2015-2016 Whizbang Films Inc.",English,Mystery/Crime/Police,2015-12-14,40000.00,40000.00,"Recoupable Advance","Development Program","Amended contract signed  14-DEC-15"
2015-2016,P3,"Karma Film Inc.",Saskatoon,Saskatchewan,Canada,"Portfolio 2015-2016 Karma Film Inc.",English,Sci.fi./Fantasy/Tale,2015-12-14,15000.00,30000.00,"Recoupable Advance","Development Program","Amended contract signed  14-DEC-15"
2015-2016,P3,"Karma Film Inc.",Saskatoon,Saskatchewan,Canada,"Portfolio 2015-2016 Karma Film Inc.",English,Thriller,2015-12-14,30000.00,30000.00,"Recoupable Advance","Development Program","Amended contract signed  14-DEC-15"
2015-2016,P3,"Bad Astronaut Inc.",Halifax,"Nova Scotia",Canada,"Portfolio 2015-2016 Bad Astronaut Inc.",English,"Historical Drama",2015-12-14,15000.00,30000.00,"Recoupable Advance","Development Program","Amended contract signed  14-DEC-15"
2015-2016,P3,"Bad Astronaut Inc.",Halifax,"Nova Scotia",Canada,"Portfolio 2015-2016 Bad Astronaut Inc.",English,Thriller,2015-12-14,30000.00,30000.00,"Recoupable Advance","Development Program","Amended contract signed  14-DEC-15"
2015-2016,P3,"Sienna Films Inc.",Toronto,Ontario,Canada,"Portfolio 2015-2016 Sienna Films Inc.",English,"Romantic Comedy",2015-12-14,15000.00,55000.00,"Recoupable Advance","Development Program","Amended contract signed  14-DEC-15"
2015-2016,P3,"Sienna Films Inc.",Toronto,Ontario,Canada,"Portfolio 2015-2016 Sienna Films Inc.",English,"Drama (Film)",2015-12-14,30000.00,55000.00,"Recoupable Advance","Development Program","Amended contract signed  14-DEC-15"
2015-2016,P3,"Sienna Films Inc.",Toronto,Ontario,Canada,"Portfolio 2015-2016 Sienna Films Inc.",English,Mystery/Crime/Police,2015-12-14,55000.00,55000.00,"Recoupable Advance","Development Program","Amended contract signed  14-DEC-15"
2015-2016,P3,"Metropole Films Distribution",Montreal,Quebec,Canada,Brooklyn,English,"Drama (Film)",2015-12-14,299904.00,299904.00,"Recoupable Advance","Marketing Program",
2015-2016,P3,"Film Works Ltd. (The) ",Toronto,Ontario,Canada,"Portfolio 2015-2016 Film Works Ltd. (The)",English,Western,2015-12-14,30000.00,30000.00,"Recoupable Advance","Development Program",
2015-2016,P3,"Reality Distortion Field Inc.",Vancouver,"British Columbia",Canada,"Portfolio 2015-2016 Reality Distortion Field Inc.",English,Sci.fi./Fantasy/Tale,2015-12-14,30000.00,30000.00,"Recoupable Advance","Development Program",
2015-2016,P3,"V�locit� International inc.",Quebec,Quebec,Canada,"Portfolio 2015-2016 V�locit� International inc.",French,"Drama (Film)",2015-12-14,30000.00,30000.00,"Recoupable Advance","Development Program",
2015-2016,P3,"Films Vision 4 Inc.",Montreal,Quebec,Canada,"Portfolio 2015-2016 Films Vision 4 Inc.",French,"Romantic Comedy",2015-12-15,15000.00,65000.00,"Recoupable Advance","Development Program","Amended contract signed  15-DEC-15"
2015-2016,P3,"Films Vision 4 Inc.",Montreal,Quebec,Canada,"Portfolio 2015-2016 Films Vision 4 Inc.",English,"Drama (Film)",2015-12-15,48000.00,65000.00,"Recoupable Advance","Development Program","Amended contract signed  15-DEC-15"
2015-2016,P3,"Films Vision 4 Inc.",Montreal,Quebec,Canada,"Portfolio 2015-2016 Films Vision 4 Inc.",French,"Drama (Film)",2015-12-15,65000.00,65000.00,"Recoupable Advance","Development Program","Amended contract signed  15-DEC-15"
2015-2016,P3,"�a Tourne Productions Ltee.","Ste-Anne du Bocage","New Brunswick",Canada,"Portfolio 2015-2016 �a Tourne Productions Ltee.",French,"Drama (Film)",2015-12-15,15000.00,15000.00,"Recoupable Advance","Development Program",
2015-2016,P3,"Films Christal, s.e.c.(Les), agissant par l'interm�diaire de son commandit�, Les Films Christal Inc",Montreal,Quebec,Canada,"Affam�s (Les)",French,Horror,2015-12-15,20000.00,20000.00,"Recoupable Advance","Marketing Program",
2015-2016,P3,"Cardinal Film Inc.",Montreal,Quebec,Canada,"Portfolio 2015-2016 Film Cardinal Inc./Cardinal Film Inc.",English,Comedy,2015-12-15,15000.00,15000.00,"Recoupable Advance","Development Program",
2015-2016,P3,"Production Deux nuits Inc.",Montreal,Quebec,Canada,"Le r�gne de la beaut� (aka Deux Nuits/Two Nights)",French,"Drama (Film)",2015-12-16,3374650.00,3400000.00,"Investment, Recoupable Advance","Production Program","Amended contract signed  02-OCT-12"
2015-2016,P3,"8439222 Canada Inc. (faisant affaires sous le nom de SMT Features)","Saint-F�licien ",Quebec,Canada,"Portfolio 2015-2016 8439222 Canada Inc. (faisant affaires sous le nom de SMT Features)",French,Thriller,2015-12-16,15000.00,15000.00,"Recoupable Advance","Development Program",
2015-2016,P3,"Pier 21 Films Ltd.",Toronto,Ontario,Canada,"Portfolio 2015-2016 Pier 21 Films Ltd.",English,Comedy,2015-12-16,15000.00,15000.00,"Recoupable Advance","Development Program",
2015-2016,P3,"Kiss & Cry Production Inc.","North York",Ontario,Canada,"Kiss and Cry",English,"Drama (Film)",2015-12-17,285000.00,285000.00,Investment,"Production Program",
2015-2016,P3,"Films S�ville Inc. (Les) / Seville Pictures Inc.",Montreal,Quebec,Canada,N.O.I.R.,French,"Drama (Film)",2015-12-18,44721.00,56000.00,"Recoupable Advance","Marketing Program","Amended contract signed  19-MAR-15"
2015-2016,P3,"Films Christal, s.e.c.(Les), agissant par l'interm�diaire de son commandit�, Les Films Christal Inc",Montreal,Quebec,Canada,CORBO,French,"Historical Drama",2015-12-18,107589.00,116630.00,"Recoupable Advance","Marketing Program","Amended contract signed  26-MAY-15"
2015-2016,P3,"Gestion Id�acom International Inc. (9085-7525 Qu�bec Inc.) ",Montreal,Quebec,Canada,"Ile aux Mammouths (L') (a.k.a. L'or de l'oc�an blanc)",French,Documentary,2015-12-18,8500.00,0.00,"Recoupable Advance",Mini-treaties,
2015-2016,P3,"The Dot Film Company Inc.","Wasaga Beach",Ontario,Canada,"Portfolio 2015-2016 The Dot Film Company Inc.",English,"Drama (Film)",2015-12-18,15000.00,15000.00,"Recoupable Advance","Development Program",
2015-2016,P3,"Couzin Films Inc.",Montreal,Quebec,Canada,"Portfolio 2015-2016 Couzin Films Inc.",English,Action/Adventure,2015-12-18,15000.00,15000.00,"Recoupable Advance","Development Program",
2015-2016,P3,"National Screen Institute - Canada",Winnipeg,Manitoba,Canada,"NSI Training Programs Fiscal 2015-16",English,N/A,2015-12-21,229500.00,229500.00,Contribution,"Promotion Program",
2015-2016,P3,"2412658 Ontario Inc.",Toronto,Ontario,Canada,"Portfolio 2015-2016 2412658 Ontario Inc.",English,Comedy,2015-12-22,15000.00,15000.00,"Recoupable Advance","Development Program",
2015-2016,P3,"Darius Films Inc.",Toronto,Ontario,Canada,"Portfolio 2015-2016 Darius Films Inc.",English,"Drama (Film)",2015-12-23,30000.00,60000.00,"Recoupable Advance","Development Program","Amended contract signed  23-DEC-15"
2015-2016,P3,"Darius Films Inc.",Toronto,Ontario,Canada,"Portfolio 2015-2016 Darius Films Inc.",English,Horror,2015-12-23,45000.00,60000.00,"Recoupable Advance","Development Program","Amended contract signed  23-DEC-15"
2015-2016,P3,"Darius Films Inc.",Toronto,Ontario,Canada,"Portfolio 2015-2016 Darius Films Inc.",English,Thriller,2015-12-23,60000.00,60000.00,"Recoupable Advance","Development Program","Amended contract signed  23-DEC-15"
2015-2016,P3,"Shaftesbury Darken Inc.",Toronto,Ontario,Canada,Darken,English,Sci.fi./Fantasy/Tale,2015-12-23,475000.00,475000.00,"Investment, Recoupable Advance","Production Program",
2015-2016,P3,"2479529 Ontario Inc.",Toronto,Ontario,Canada,"Sadie's Last Day on Earth",English,Comedy,2015-12-23,196000.00,196000.00,"Investment, Recoupable Advance","Production Program",
